fUSD/lending_fUSD_20251002
["ID","MTS","AMOUNT","RATE_DAILY","PERIOD"]
[388842085,1759413054183,-1250.0,0.00021917,2]
[388842086,1759413054195,-500.0,0.00021917,2]
[388842087,1759413054205,-500.0,0.00021917,2]
[388842088,1759413054214,-2945.8,0.00021917,2]
[388842089,1759413054225,-500.0,0.00021917,2]
[388842090,1759413054235,-500.0,0.00021917,2]
[388842091,1759413054244,-500.0,0.00021917,2]
[388842092,1759413054254,-2288.28,0.00021917,2]
[388842093,1759413054263,-500.0,0.00021917,2]
[388842094,1759413054273,-500.0,0.00021917,2]
[388842095,1759413054282,-659.18,0.00021917,2]
[388842096,1759413054292,-975.49,0.00021917,2]
[388842097,1759413054301,-500.0,0.00021917,2]
[388842098,1759413054311,-500.0,0.00021917,2]
[388842099,1759413054321,-677.8,0.00021917,2]
[388842100,1759413054332,-500.0,0.00021917,2]
[388842101,1759413054342,-2667.31,0.00021917,2]
[388842102,1759413054352,-2364.12,0.00021917,2]
[388842103,1759413054362,-171.443129,0.00021917,2]
[388842104,1759413054371,-1791.18,0.00021917,2]
[388842105,1759413054380,-2628.99,0.00021917,2]
[388842106,1759413054390,-500.0,0.00021917,2]
[388842107,1759413054400,-509.85,0.00021917,2]
[388842108,1759413054410,-500.0,0.00021917,2]
[388842109,1759413054419,-1346.0,0.00021917,2]
[388842110,1759413054429,-650.69,0.00021917,2]
[388842111,1759413054439,-1000.0,0.00021917,2]
[388842112,1759413054449,-500.0,0.00021917,2]
[388842113,1759413054459,-1873.41,0.00021917,2]
[388842114,1759413054470,-151.0,0.00021917,2]
[388842115,1759413054480,-503.98,0.00021917,2]
[388842116,1759413054489,-5974.4,0.00021917,2]
[388842117,1759413054500,-500.0,0.00021917,2]
[388842118,1759413054510,-635.95,0.00021917,2]
[388842119,1759413054521,-500.0,0.00021917,2]
[388842120,1759413054530,-151.0,0.00021917,2]
[388842121,1759413054541,-151.0,0.00021917,2]
[388842122,1759413054551,-681.83,0.00021917,2]
[388842123,1759413054561,-151.0,0.00021917,2]
[388842124,1759413054571,-500.0,0.00021917,2]
[388842125,1759413054580,-500.0,0.00021917,2]
[388842126,1759413054591,-500.0,0.00021917,2]
[388842127,1759413054601,-151.0,0.00021917,2]
[388842128,1759413054611,-151.0,0.00021917,2]
[388842129,1759413054620,-293.62566,0.00021917,2]
[388842130,1759413054630,-500.0,0.00021917,2]
[388842131,1759413054639,-500.0,0.00021917,2]
[388842132,1759413054649,-500.0,0.00021917,2]
[388842133,1759413054658,-502.96590023,0.00021917,2]
[388842134,1759413054668,-500.0,0.00021917,2]
[388842135,1759413054677,-867.16,0.00021917,2]
[388842136,1759413054688,-500.0,0.00021917,2]
[388842137,1759413054697,-500.0,0.00021917,2]
[388842138,1759413054707,-500.0,0.00021917,2]
[388842139,1759413054716,-500.0,0.00021917,2]
[388842140,1759413054726,-500.0,0.00021917,2]
[388842141,1759413054735,-151.0,0.00021917,2]
[388842142,1759413054745,-500.0,0.00021917,2]
[388842143,1759413054754,-500.0,0.00021917,2]
[388842144,1759413054764,-500.0,0.00021917,2]
[388842145,1759413054773,-500.0,0.00021917,2]
[388842146,1759413054783,-152.58996,0.00021917,2]
[388842147,1759413054792,-1338.93,0.00021917,2]
[388842148,1759413054802,-500.0,0.00021917,2]
[388842149,1759413054812,-500.0,0.00021917,2]
[388842150,1759413054825,-415.29339482,0.00021917,2]
[388842151,1759413054835,-151.0,0.00021917,2]
[388842152,1759413054845,-2765.41,0.00021917,2]
[388842153,1759413054854,-151.0,0.00021917,2]
[388842154,1759413054865,-500.0,0.00021917,2]
[388842155,1759413054875,-151.0,0.00021917,2]
[388842156,1759413054884,-151.0,0.00021917,2]
[388842157,1759413054895,-151.0,0.00021917,2]
[388842158,1759413054904,-500.0,0.00021917,2]
[388842159,1759413054914,-151.0,0.00021917,2]
[388842160,1759413054923,-1261.26,0.00021917,2]
[388842161,1759413054933,-2377.06,0.00021917,2]
[388842162,1759413054943,-151.0,0.00021917,2]
[388842163,1759413054953,-151.0,0.00021917,2]
[388842164,1759413054962,-500.0,0.00021917,2]
[388842165,1759413054972,-500.0,0.00021917,2]
[388842166,1759413054981,-1391.78,0.00021917,2]
[388842167,1759413054991,-3080.62,0.00021917,2]
[388842168,1759413055001,-500.0,0.00021917,2]
[388842169,1759413055011,-718.82,0.00021917,2]
[388842170,1759413055020,-786.93,0.00021917,2]
[388842171,1759413055030,-500.0,0.00021917,2]
[388842172,1759413055039,-500.0,0.00021917,2]
[388842173,1759413055048,-1340.62,0.00021917,2]
[388842174,1759413055058,-500.0,0.00021917,2]
[388842175,1759413055068,-500.0,0.00021917,2]
[388842176,1759413055077,-500.0,0.00021917,2]
[388842177,1759413055086,-500.0,0.00021917,2]
[388842178,1759413055096,-808.09,0.00021917,2]
[388842179,1759413055106,-598.33,0.00021917,2]
[388842180,1759413055115,-500.0,0.00021917,2]
[388842181,1759413055125,-151.0,0.00021917,2]
[388842182,1759413055134,-151.0,0.00021917,2]
[388842183,1759413055143,-151.0,0.00021917,2]
[388842184,1759413055153,-2340.74,0.00021917,2]
[388842185,1759413055162,-151.0,0.00021917,2]
[388842186,1759413055171,-151.0,0.00021917,2]
[388842187,1759413055181,-151.0,0.00021917,2]
[388842188,1759413055192,-611.96,0.00021917,2]
[388842189,1759413055201,-500.0,0.00021917,2]
[388842190,1759413055210,-151.0,0.00021917,2]
[388842191,1759413055220,-500.0,0.00021917,2]
[388842192,1759413055229,-151.0,0.00021917,2]
[388842193,1759413055248,-500.0,0.00021917,2]
[388842194,1759413055259,-151.0,0.00021917,2]
[388842195,1759413055268,-151.0,0.00021917,2]
[388842196,1759413055278,-151.0,0.00021917,2]
[388842197,1759413055287,-230.787591,0.00021917,2]
[388842198,1759413055297,-1200.08,0.00021917,2]
[388842199,1759413055307,-500.0,0.00021917,2]
[388842200,1759413055316,-500.0,0.00021917,2]
[388842201,1759413055326,-500.0,0.00021917,2]
[388842202,1759413055335,-2765.19,0.00021917,2]
[388842203,1759413055345,-500.0,0.00021917,2]
[388842204,1759413055355,-500.0,0.00021917,2]
[388842205,1759413055365,-1180.69,0.00021917,2]
[388842206,1759413055374,-2066.8,0.00021917,2]
[388842207,1759413055384,-500.0,0.00021917,2]
[388842208,1759413055393,-1156.65,0.00021917,2]
[388842209,1759413055403,-500.0,0.00021917,2]
[388842210,1759413055412,-4959.83,0.00021917,2]
[388842211,1759413055422,-1075.41,0.00021917,2]
[388842212,1759413055432,-1589.71,0.00021917,2]
[388842213,1759413055443,-1031.36,0.00021917,2]
[388842214,1759413055452,-945.96,0.00021917,2]
[388842215,1759413055462,-340.20714988,0.00021917,2]
[388842216,1759413055472,-1297.29,0.00021917,2]
[388842217,1759413055482,-1297.29,0.00021917,2]
[388842218,1759413055491,-1297.29,0.00021917,2]
[388842219,1759413055501,-1297.29,0.00021917,2]
[388842220,1759413055511,-500.0,0.00021917,2]
[388842221,1759413055520,-1297.29,0.00021917,2]
[388842222,1759413055532,-1297.29,0.00021917,2]
[388842223,1759413055543,-1297.29,0.00021917,2]
[388842224,1759413055553,-1297.29,0.00021917,2]
[388842225,1759413055563,-1297.29,0.00021917,2]
[388842226,1759413055572,-622.73,0.00021917,2]
[388842227,1759413055582,-1297.29,0.00021917,2]
[388842228,1759413055591,-500.0,0.00021917,2]
[388842229,1759413055600,-500.0,0.00021917,2]
[388842230,1759413055757,-500.0,0.00021917,2]
[388842231,1759413055767,-695.63,0.00021917,2]
[388842232,1759413055777,-686.74,0.00021917,2]
[388842233,1759413055786,-211.92864881,0.00021917,2]
[388842234,1759413055795,-559.68,0.00021917,2]
[388842235,1759413055804,-500.0,0.00021917,2]
[388842236,1759413055815,-3472.12,0.00021917,2]
[388842237,1759413055828,-1960.96,0.00021917,2]
[388842238,1759413055837,-597.9,0.00021917,2]
[388842239,1759413055846,-198.287352,0.00021917,2]
[388842240,1759413055855,-198.287352,0.00021917,2]
[388842241,1759413055866,-500.0,0.00021917,2]
[388842242,1759413055875,-198.287352,0.00021917,2]
[388842243,1759413055884,-395.49348546,0.00021917,2]
[388842244,1759413055894,-1197.29,0.00021917,2]
[388842245,1759413055904,-500.0,0.00021917,2]
[388842246,1759413055914,-198.287352,0.00021917,2]
[388842247,1759413055923,-500.0,0.00021917,2]
[388842248,1759413055933,-198.287352,0.00021917,2]
[388842249,1759413055942,-198.287352,0.00021917,2]
[388842250,1759413055951,-198.287352,0.00021917,2]
[388842251,1759413055961,-198.287352,0.00021917,2]
[388842252,1759413055970,-198.287352,0.00021917,2]
[388842253,1759413055979,-198.287352,0.00021917,2]
[388842254,1759413055988,-500.0,0.00021917,2]
[388842255,1759413055999,-198.287352,0.00021917,2]
[388842256,1759413056008,-198.287344,0.00021917,2]
[388842257,1759413056017,-500.0,0.00021917,2]
[388842258,1759413056027,-500.0,0.00021917,2]
[388842259,1759413056036,-500.0,0.00021917,2]
[388842260,1759413056044,-2571.2,0.00021917,2]
[388842261,1759413056053,-500.0,0.00021917,2]
[388842262,1759413056063,-500.0,0.00021917,2]
[388842263,1759413056072,-500.0,0.00021917,2]
[388842264,1759413056081,-500.0,0.00021917,2]
[388842265,1759413056090,-537.01,0.00021917,2]
[388842266,1759413056099,-500.0,0.00021917,2]
[388842267,1759413056108,-500.0,0.00021917,2]
[388842268,1759413056117,-500.0,0.00021917,2]
[388842269,1759413056127,-500.0,0.00021917,2]
[388842270,1759413056136,-5061.1,0.00021917,2]
[388842271,1759413056145,-500.0,0.00021917,2]
[388842272,1759413056154,-500.0,0.00021917,2]
[388842273,1759413056163,-500.0,0.00021917,2]
[388842274,1759413056172,-500.0,0.00021917,2]
[388842275,1759413056181,-500.0,0.00021917,2]
[388842276,1759413056192,-500.0,0.00021917,2]
[388842277,1759413056202,-500.0,0.00021917,2]
[388842278,1759413056212,-325.51,0.00021917,2]
[388842279,1759413056221,-500.0,0.00021917,2]
[388842280,1759413056231,-964.5,0.00021917,2]
[388842281,1759413056241,-500.0,0.00021917,2]
[388842282,1759413056251,-153.008365,0.00021917,2]
[388842283,1759413056259,-153.008373,0.00021917,2]
[388842284,1759413056273,-1068.61,0.00021917,2]
[388842285,1759413056282,-2302.89,0.00021917,2]
[388842286,1759413056291,-500.0,0.00021917,2]
[388842287,1759413056300,-1058.35,0.00021917,2]
[388842288,1759413056310,-659.69,0.00021917,2]
[388842289,1759413056320,-659.69,0.00021917,2]
[388842290,1759413056329,-659.69,0.00021917,2]
[388842291,1759413056339,-961.27,0.00021917,2]
[388842292,1759413056348,-659.69,0.00021917,2]
[388842293,1759413056358,-734.02,0.00021917,2]
[388842294,1759413056367,-151.0,0.00021917,2]
[388842295,1759413056376,-659.69,0.00021917,2]
[388842296,1759413056386,-659.69,0.00021917,2]
[388842297,1759413056395,-151.0,0.00021917,2]
[388842298,1759413056404,-2373.0,0.00021917,2]
[388842299,1759413056414,-659.69,0.00021917,2]
[388842300,1759413056423,-151.0,0.00021917,2]
[388842301,1759413056433,-659.69,0.00021917,2]
[388842302,1759413056443,-659.69,0.00021917,2]
[388842303,1759413056452,-659.69,0.00021917,2]
[388842304,1759413056462,-500.0,0.00021917,2]
[388842305,1759413056471,-659.69,0.00021917,2]
[388842306,1759413056481,-151.0,0.00021917,2]
[388842307,1759413056490,-500.0,0.00021917,2]
[388842308,1759413056499,-2447.41,0.00021917,2]
[388842309,1759413056508,-659.69,0.00021917,2]
[388842310,1759413056518,-294.811504,0.00021917,2]
[388842311,1759413056528,-659.69,0.00021917,2]
[388842312,1759413056538,-540.47,0.00021917,2]
[388842313,1759413056547,-659.69,0.00021917,2]
[388842314,1759413056556,-659.69,0.00021917,2]
[388842315,1759413056566,-659.69,0.00021917,2]
[388842316,1759413056575,-659.69,0.00021917,2]
[388842317,1759413056584,-659.69,0.00021917,2]
[388842318,1759413056594,-842.116175,0.00021917,2]
[388842319,1759413056603,-5946.99,0.00021917,2]
[388842320,1759413056612,-842.116175,0.00021917,2]
[388842321,1759413056622,-842.116175,0.00021917,2]
[388842322,1759413056632,-842.116175,0.00021917,2]
[388842323,1759413056641,-269.72118948,0.00021917,2]
[388842324,1759413056650,-842.116175,0.00021917,2]
[388842325,1759413056660,-500.0,0.00021917,2]
[388842326,1759413056669,-842.116175,0.00021917,2]
[388842327,1759413056679,-500.0,0.00021917,2]
[388842328,1759413056689,-500.0,0.00021917,2]
[388842329,1759413056699,-842.116175,0.00021917,2]
[388842330,1759413056708,-500.0,0.00021917,2]
[388842331,1759413056718,-842.116175,0.00021917,2]
[388842332,1759413056727,-401.300115,0.00021917,2]
[388842333,1759413056736,-842.11618,0.00021917,2]
[388842334,1759413056746,-401.300115,0.00021917,2]
[388842335,1759413056755,-401.300115,0.00021917,2]
[388842336,1759413056765,-500.0,0.00021917,2]
[388842337,1759413056774,-401.300115,0.00021917,2]
[388842338,1759413056782,-401.300115,0.00021917,2]
[388842339,1759413056791,-500.0,0.00021917,2]
[388842340,1759413056801,-2465.59,0.00021917,2]
[388842341,1759413056811,-401.300115,0.00021917,2]
[388842342,1759413056825,-983.86,0.00021917,2]
[388842343,1759413056834,-151.0,0.00021917,2]
[388842344,1759413056843,-401.300115,0.00021917,2]
[388842345,1759413056853,-500.0,0.00021917,2]
[388842346,1759413056864,-151.0,0.00021917,2]
[388842347,1759413056874,-1197.12,0.00021917,2]
[388842348,1759413056883,-401.300115,0.00021917,2]
[388842349,1759413056895,-151.0,0.00021917,2]
[388842350,1759413056904,-401.300115,0.00021917,2]
[388842351,1759413056914,-401.300115,0.00021917,2]
[388842352,1759413056923,-151.0,0.00021917,2]
[388842353,1759413056933,-401.300115,0.00021917,2]
[388842354,1759413056943,-401.300119,0.00021917,2]
[388842355,1759413056952,-500.0,0.00021917,2]
[388842356,1759413056962,-316.358566,0.00021917,2]
[388842357,1759413056972,-316.358566,0.00021917,2]
[388842358,1759413056981,-316.358566,0.00021917,2]
[388842359,1759413056990,-4184.97,0.00021917,2]
[388842360,1759413057000,-1723.84,0.00021917,2]
[388842361,1759413057009,-316.358566,0.00021917,2]
[388842362,1759413057018,-3318.98,0.00021917,2]
[388842363,1759413057028,-316.358566,0.00021917,2]
[388842364,1759413057037,-316.358566,0.00021917,2]
[388842365,1759413057047,-233.54889796,0.00021917,2]
[388842366,1759413057056,-500.0,0.00021917,2]
[388842367,1759413057066,-316.358566,0.00021917,2]
[388842368,1759413057076,-316.358566,0.00021917,2]
[388842369,1759413057087,-316.358566,0.00021917,2]
[388842370,1759413057096,-500.0,0.00021917,2]
[388842371,1759413057106,-500.0,0.00021917,2]
[388842372,1759413057115,-316.358566,0.00021917,2]
[388842373,1759413057125,-500.0,0.00021917,2]
[388842374,1759413057135,-500.0,0.00021917,2]
[388842375,1759413057144,-316.358566,0.00021917,2]
[388842376,1759413057153,-316.35857,0.00021917,2]
[388842377,1759413057163,-500.0,0.00021917,2]
[388842378,1759413057172,-500.0,0.00021917,2]
[388842379,1759413057182,-500.0,0.00021917,2]
[388842380,1759413057192,-500.0,0.00021917,2]
[388842381,1759413057201,-151.0,0.00021917,2]
[388842382,1759413057210,-500.0,0.00021917,2]
[388842383,1759413057219,-501.70345946,0.00021917,2]
[388842384,1759413057228,-557.97843746,0.00021917,2]
[388842385,1759413057237,-500.0,0.00021917,2]
[388842386,1759413057246,-500.0,0.00021917,2]
[388842387,1759413057255,-500.0,0.00021917,2]
[388842388,1759413057264,-2071.84,0.00021917,2]
[388842389,1759413057274,-500.0,0.00021917,2]
[388842390,1759413057289,-2242.64,0.00021917,2]
[388842391,1759413057301,-500.0,0.00021917,2]
[388842392,1759413057311,-500.0,0.00021917,2]
[388842393,1759413057320,-500.0,0.00021917,2]
[388842394,1759413057329,-597.27,0.00021917,2]
[388842395,1759413057343,-500.0,0.00021917,2]
[388842396,1759413057352,-613.05,0.00021917,2]
[388842397,1759413057362,-1291.8,0.00021917,2]
[388842398,1759413057371,-5887.82,0.00021917,2]
[388842399,1759413057381,-1189.7,0.00021917,2]
[388842400,1759413057390,-500.0,0.00021917,2]
[388842401,1759413057399,-8523.78,0.00021917,2]
[388842402,1759413057409,-8629.34,0.00021917,2]
[388842403,1759413057418,-3404.12,0.00021917,2]
[388842404,1759413057428,-1997.14,0.00021917,2]
[388842405,1759413057439,-500.0,0.00021917,2]
[388842406,1759413057448,-151.0,0.00021917,2]
[388842407,1759413057458,-504.59,0.00021917,2]
[388842408,1759413057467,-999.25,0.00021917,2]
[388842409,1759413057476,-3098.57,0.00021917,2]
[388842410,1759413057485,-2210.9,0.00021917,2]
[388842411,1759413057495,-500.0,0.00021917,2]
[388842412,1759413057504,-151.0,0.00021917,2]
[388842413,1759413057513,-151.0,0.00021917,2]
[388842414,1759413057522,-500.0,0.00021917,2]
[388842415,1759413057533,-151.0,0.00021917,2]
[388842416,1759413057542,-151.0,0.00021917,2]
[388842417,1759413057552,-241.0,0.00021917,2]
[388842418,1759413057562,-500.0,0.00021917,2]
[388842419,1759413057572,-2388.81,0.00021917,2]
[388842420,1759413057583,-500.0,0.00021917,2]
[388842421,1759413057592,-500.0,0.00021917,2]
[388842422,1759413057602,-2075.76,0.00021917,2]
[388842423,1759413057611,-500.0,0.00021917,2]
[388842424,1759413057621,-241.06355388,0.00021917,2]
[388842425,1759413057630,-500.0,0.00021917,2]
[388842426,1759413057640,-500.0,0.00021917,2]
[388842427,1759413057649,-500.0,0.00021917,2]
[388842428,1759413057658,-245.835568,0.00021917,2]
[388842429,1759413057668,-245.835568,0.00021917,2]
[388842430,1759413057677,-500.0,0.00021917,2]
[388842431,1759413057687,-500.0,0.00021917,2]
[388842432,1759413057696,-245.835568,0.00021917,2]
[388842433,1759413057706,-2505.26,0.00021917,2]
[388842434,1759413057715,-2569.2,0.00021917,2]
[388842435,1759413057725,-500.0,0.00021917,2]
[388842436,1759413057735,-1306.52,0.00021917,2]
[388842437,1759413057744,-500.0,0.00021917,2]
[388842438,1759413057754,-245.835568,0.00021917,2]
[388842439,1759413057763,-245.835568,0.00021917,2]
[388842440,1759413057772,-500.0,0.00021917,2]
[388842441,1759413057781,-245.835568,0.00021917,2]
[388842442,1759413057790,-245.835568,0.00021917,2]
[388842443,1759413057799,-245.321224,0.00021917,2]
[388842444,1759413057808,-245.835568,0.00021917,2]
[388842445,1759413057819,-1868.4,0.00021917,2]
[388842446,1759413057831,-245.835568,0.00021917,2]
[388842447,1759413057840,-500.0,0.00021917,2]
[388842448,1759413057849,-1023.35,0.00021917,2]
[388842449,1759413057860,-500.0,0.00021917,2]
[388842450,1759413057869,-245.835568,0.00021917,2]
[388842451,1759413057879,-500.0,0.00021917,2]
[388842452,1759413057890,-4371.73,0.00021917,2]
[388842453,1759413057901,-245.835568,0.00021917,2]
[388842454,1759413057911,-6214.77,0.00021917,2]
[388842455,1759413057920,-245.835575,0.00021917,2]
[388842456,1759413057930,-500.0,0.00021917,2]
[388842457,1759413057940,-898.27,0.00021917,2]
[388842458,1759413057950,-500.0,0.00021917,2]
[388842459,1759413057959,-528.121707,0.00021917,2]
[388842460,1759413057968,-514.28,0.00021917,2]
[388842461,1759413057978,-528.121707,0.00021917,2]
[388842462,1759413057987,-528.121707,0.00021917,2]
[388842463,1759413057996,-510.7,0.00021917,2]
[388842464,1759413058005,-500.0,0.00021917,2]
[388842465,1759413058015,-2954.49,0.00021917,2]
[388842466,1759413058024,-1515.27,0.00021917,2]
[388842467,1759413058033,-528.121707,0.00021917,2]
[388842468,1759413058042,-528.121707,0.00021917,2]
[388842469,1759413058051,-500.0,0.00021917,2]
[388842470,1759413058060,-528.121707,0.00021917,2]
[388842471,1759413058070,-500.0,0.00021917,2]
[388842472,1759413058079,-500.0,0.00021917,2]
[388842473,1759413058088,-528.121707,0.00021917,2]
[388842474,1759413058098,-528.121707,0.00021917,2]
[388842475,1759413058107,-528.121707,0.00021917,2]
[388842476,1759413058116,-3236.76,0.00021917,2]
[388842477,1759413058125,-165.70266,0.00021917,2]
[388842478,1759413058135,-528.121707,0.00021917,2]
[388842479,1759413058144,-500.0,0.00021917,2]
[388842480,1759413058153,-528.121707,0.00021917,2]
[388842481,1759413058163,-528.121701,0.00021917,2]
[388842482,1759413058172,-500.0,0.00021917,2]
[388842483,1759413058181,-765.61,0.00021917,2]
[388842484,1759413058193,-1238.63,0.00021917,2]
[388842485,1759413058202,-500.0,0.00021917,2]
[388842486,1759413058212,-2693.5,0.00021917,2]
[388842487,1759413058221,-545.41591,0.00021917,2]
[388842488,1759413058231,-8802.51,0.00021917,2]
[388842489,1759413058240,-545.41591,0.00021917,2]
[388842490,1759413058249,-500.0,0.00021917,2]
[388842491,1759413058260,-545.41591,0.00021917,2]
[388842492,1759413058269,-500.0,0.00021917,2]
[388842493,1759413058283,-500.0,0.00021917,2]
[388842494,1759413058292,-545.41591,0.00021917,2]
[388842495,1759413058301,-500.0,0.00021917,2]
[388842496,1759413058310,-545.41591,0.00021917,2]
[388842497,1759413058320,-545.41591,0.00021917,2]
[388842498,1759413058329,-500.0,0.00021917,2]
[388842499,1759413058339,-765.79,0.00021917,2]
[388842500,1759413058349,-545.41591,0.00021917,2]
[388842501,1759413058358,-545.41591,0.00021917,2]
[388842502,1759413058367,-545.41591,0.00021917,2]
[388842503,1759413058379,-500.0,0.00021917,2]
[388842504,1759413058395,-8015.61,0.00021917,2]
[388842505,1759413058405,-545.41591,0.00021917,2]
[388842506,1759413058414,-500.0,0.00021917,2]
[388842507,1759413058423,-545.41591,0.00021917,2]
[388842508,1759413058437,-545.415915,0.00021917,2]
[388842509,1759413058454,-680.26,0.00021917,2]
[388842510,1759413058464,-500.0,0.00021917,2]
[388842511,1759413058474,-2791.51,0.00021917,2]
[388842512,1759413058483,-500.0,0.00021917,2]
[388842513,1759413058493,-500.0,0.00021917,2]
[388842514,1759413058503,-500.0,0.00021917,2]
[388842515,1759413058512,-5472.8,0.00021917,2]
[388842516,1759413058521,-500.0,0.00021917,2]
[388842517,1759413058531,-500.96818724,0.00021917,2]
[388842518,1759413058540,-500.0,0.00021917,2]
[388842519,1759413058549,-500.0,0.00021917,2]
[388842520,1759413058559,-2002.11,0.00021917,2]
[388842521,1759413058568,-500.0,0.00021917,2]
[388842522,1759413058578,-516.63,0.00021917,2]
[388842523,1759413058587,-500.0,0.00021917,2]
[388842524,1759413058597,-500.0,0.00021917,2]
[388842525,1759413058607,-500.0,0.00021917,2]
[388842526,1759413058616,-500.0,0.00021917,2]
[388842527,1759413058625,-1400.18,0.00021917,2]
[388842528,1759413058635,-530.12,0.00021917,2]
[388842529,1759413058643,-500.0,0.00021917,2]
[388842530,1759413058653,-2548.1,0.00021917,2]
[388842531,1759413058662,-500.0,0.00021917,2]
[388842532,1759413058671,-500.20997682,0.00021917,2]
[388842533,1759413058681,-500.8442477,0.00021917,2]
[388842534,1759413058691,-500.0,0.00021917,2]
[388842535,1759413058700,-500.0,0.00021917,2]
[388842536,1759413058710,-1500.0,0.00021917,14]
[388842537,1759413058719,-1500.0,0.00021917,14]
[388842538,1759413058729,-1500.0,0.00021917,14]
[388842539,1759413058738,-1500.0,0.00021917,14]
[388842540,1759413058748,-1500.0,0.00021917,14]
[388842541,1759413058758,-1500.0,0.00021917,14]
[388842542,1759413058767,-1500.0,0.00021917,14]
[388842543,1759413058777,-1500.0,0.00021917,14]
[388842544,1759413058786,-2655.28,0.00021917,2]
[388842545,1759413058796,-500.0,0.00021917,2]
[388842546,1759413058806,-500.0,0.00021917,2]
[388842547,1759413058818,-500.0,0.00021917,2]
[388842548,1759413058830,-1500.0,0.00021917,14]
[388842549,1759413058839,-1500.0,0.00021917,14]
[388842550,1759413058850,-1500.0,0.00021917,14]
[388842551,1759413058860,-1500.0,0.00021917,14]
[388842552,1759413058870,-500.0,0.00021917,2]
[388842553,1759413058880,-1500.0,0.00021917,14]
[388842554,1759413058891,-500.0,0.00021917,2]
[388842555,1759413058902,-1500.0,0.00021917,14]
[388842556,1759413058912,-1500.0,0.00021917,14]
[388842557,1759413058921,-1500.0,0.00021917,14]
[388842558,1759413058931,-5906.03,0.00021917,2]
[388842559,1759413058941,-500.0,0.00021917,2]
[388842560,1759413058950,-1500.0,0.00021917,14]
[388842561,1759413058960,-500.0,0.00021917,2]
[388842562,1759413058969,-1460.3,0.00021917,2]
[388842563,1759413058978,-1500.0,0.00021917,14]
[388842564,1759413058988,-500.0,0.00021917,2]
[388842565,1759413058998,-502.55,0.00021917,2]
[388842566,1759413059007,-1002.47,0.00021917,2]
[388842567,1759413059016,-1500.0,0.00021917,14]
[388842568,1759413059026,-1500.0,0.00021917,14]
[388842569,1759413059035,-1500.0,0.00021917,14]
[388842570,1759413059045,-3000.14,0.00021917,2]
[388842571,1759413059055,-500.0,0.00021917,2]
[388842572,1759413059064,-1500.0,0.00021917,14]
[388842573,1759413059074,-1500.0,0.00021917,14]
[388842574,1759413059085,-1305.25038,0.00021917,14]
[388842575,1759413059094,-500.0,0.00021917,2]
[388842576,1759413059104,-5819.48,0.00021917,2]
[388842577,1759413059114,-5771.07,0.00021917,2]
[388842578,1759413059123,-582.21,0.00021917,2]
[388842579,1759413059133,-500.0,0.00021917,2]
[388842580,1759413059142,-1887.59,0.00021917,2]
[388842581,1759413059151,-151.0,0.00021917,2]
[388842582,1759413059160,-191.4259,0.00021917,2]
[388842583,1759413059170,-9513.0,0.00021917,2]
[388842584,1759413059180,-500.0,0.00021917,2]